Cogmind - Beta 17.1 @@@ ROGUE MODE // 2026.08.29 @ 11:33:50 Player: beans Result: Destroyed by S-10 Pest with Light Assault Rifle Performance ------------- Evolutions (2) 1000 Regions Visited (4) 800 Robots Destroyed (39) 195 Value Destroyed (985) 985 Prototype IDs (0) 0 Alien Tech Used (0) 0 Bonus (33) 33 TOTAL SCORE: 3013 Bonus ------- Follower Combat Kills 33 Cogmind --------- Core Integrity 0/550 Matter 275/300 Energy 87/100 System Corruption 0% Temperature Cool (0) Movement Core (50) Location -8/Materials Parts ------- > --- POWER (2) -------- (None) > --- PROPULSION (2) --- (None) > --- UTILITY (4) ------ Improved Heat Sink Visual Processing Unit Core Shielding > --- WEAPON (3) ------- (None) > --- INVENTORY (5) ---- Light Angular Momentum Engine Advanced Heat Sink High-capacity Matter Pod (200) High-capacity Matter Pod (200) Particle Cannon Peak State ------------ > --- POWER ------------ Deuterium Engine Deuterium Engine > --- PROPULSION ------- (None) > --- UTILITY ---------- High-capacity Matter Pod Visual Processing Unit Core Shielding Hacking Suite > --- WEAPON ----------- Particle Gun Light Assault Rifle > --- INVENTORY -------- High-capacity Matter Pod High-capacity Matter Pod Light Armor Plating Particle Cannon [Rating: 16] Favorites ----------- Power Light Ion Engine Engine Light Ion Engine Power Core Light Nuclear Core Propulsion Light Treads Treads Light Treads Leg Carbon-fiber Leg Utility Visual Processing Unit Device Heat Sink Storage High-capacity Matter Pod Processor Visual Processing Unit Hackware Hacking Suite Protection Core Shielding Weapon Light Assault Rifle Energy Gun Particle Gun Energy Cannon Particle Cannon Ballistic Gun Light Assault Rifle Ballistic Cannon Light Cannon Build | -11 -10 -9 -9 -8 ------- Run | Yrd Mat Mat Min Mat Slots Evolved 4 | . . 2 . 2 Power 1 | . . . . 1 Propulsion . | . . . . . Utility 2 | . . 2 . . Weapon 1 | . . . . 1 Parts Attached 25 | 5 1 8 3 8 Power 5 | 1 . 2 . 2 Engine 3 | 1 . . . 2 Core 2 | . . 2 . . Reactor . | . . . . . Propulsion 5 | 2 . 2 . 1 Treads 4 | 2 . 2 . . Leg 1 | . . . . 1 Wheel . | . . . . . Hover . | . . . . . Flight . | . . . . . Utility 9 | . 1 3 1 4 Device 3 | . . 1 . 2 Storage 1 | . . 1 . . Processor 1 | . 1 . . . Hackware 1 | . . 1 . . Protection 3 | . . . 1 2 Artifact . | . . . . . Weapon 6 | 2 . 1 2 1 Energy Gun 1 | . . . . 1 Energy Cannon 1 | . . 1 . . Ballistic Gun 3 | 2 . . 1 . Ballistic Cannon 1 | . . . 1 . Launcher . | . . . . . Special Weapon . | . . . . . Impact Weapon . | . . . . . Slashing Weapon . | . . . . . Piercing Weapon . | . . . . . Special Melee Weapon . | . . . . . Unidentified Prototypes . | . . . . . Parts Lost 20 | . . 4 5 11 Power 4 | . . 1 1 2 Propulsion 5 | . . 2 2 1 Utility 6 | . . . 1 5 Weapon 5 | . . 1 1 3 Highest Loss Streak 7 | . . 4 3 7 To Critical Strikes . | . . . . . Average Backups 3 | . 1 4 5 4 Power . | . . . . . Propulsion . | . . . . . Utility 3 | . 1 3 4 3 Weapon . | . . . 1 1 Tool/Special . | . . . . . Unused Backups 5 | . . . . 5 Power 1 | . . . . 1 Propulsion . | . . . . . Utility 4 | . . . . 4 Weapon . | . . . . . Tool/Special . | . . . . . Average Slot Usage (%) 71 | . 71 89 62 49 Engine 4 | . 14 4 . 3 Core 1 | . . 3 . . Treads 12 | . 28 20 3 . Device 5 | . . 10 3 1 Storage 8 | . . 10 11 6 Processor 9 | . . 11 11 9 Hackware 7 | . . 7 11 7 Protection 1 | . . . . 8 Energy Cannon 2 | . . 7 . . Ballistic Gun 13 | . 28 12 10 6 Ballistic Cannon 4 | . . . 11 3 Peak Build Rating 16 | 5 7 15 14 16 Average Rating 9 | 4 5 11 8 10 On Entrance 7 | . 5 7 15 9 Avg Prop Armor Cover (%) . | . . . . . Naked Turns . | . . . . . Heaviest Build 27 | 6 6 16 14 27 Greatest Support 40 | 40 40 40 20 15 Greatest Overweight (x) 8 | . . 3 2 8 Average Overweight (x) . | . . . 1 . Largest Inventory Capacity 5 | 5 5 5 5 5 Average Capacity 5 | 5 5 5 5 5 Most Carried 5 | . 5 5 5 5 Average Carried 3 | . 1 4 4 4 Final Capacity 5 | 5 5 5 5 5 Final Carried 5 | . 5 5 4 5 Class Distribution -------------------- 88% | Mutant 11% | Scavenger-Mutant Dominant Class ---------------- Mutant | -10/Materials Mutant | -9/Materials Mutant | -9/Mines Mutant | -8/Materials Resources | -11 -10 -9 -9 -8 ----------- Run | Yrd Mat Mat Min Mat Matter Collected 1424 | 189 134 648 340 113 Remotely . | . . . . . Salvage Created 1159 | . 192 602 151 214 Parts 71 | . 17 33 13 8 Haulers Intercepted . | . . . . . Recyclers Shooed . | . . . . . Parts Field Recycled . | . . . . . Retrieved Matter . | . . . . . Parts Self-Destructed . | . . . . . Prevented . | . . . . . Parts Restored . | . . . . . Kills | -11 -10 -9 -9 -8 ------- Run | Yrd Mat Mat Min Mat Combat Hostiles Destroyed 30 | . 3 13 10 4 Guns 14 | . 3 5 2 4 Cannons 16 | . . 8 8 . Classes Destroyed 8 | . 3 4 . 1 Worker 3 | . . 3 . . Builder 1 | . . 1 . . Tunneler 1 | . . . . 1 Operator 1 | . 1 . . . Watcher 3 | . 2 1 . . Swarmer 10 | . . 3 7 . Grunt 18 | . 3 8 3 4 Sentry 2 | . . 2 . . Best Kill Streak 12 | . 5 12 4 2 Combat Bots Only 9 | . 3 9 4 2 Max Kills in Single Turn 2 | . 1 2 1 1 Gunslinging . | . . . . . Exploded . | . . . . . Melee . | . . . . . Uniques/NPCs Destroyed . | . . . . . Combat | -11 -10 -9 -9 -8 -------- Run | Yrd Mat Mat Min Mat Hostile Shots Fired 312 | . 21 97 72 122 Missed 91 | . 8 22 26 35 Hits 221 | . 13 75 46 87 Projectile 221 | . 13 75 46 87 Critical Strikes 2 | . . . 1 1 Actively Blocked 1 | . . . . 1 Damage Taken 2678 | . 186 862 425 1205 Core 922 | . 24 227 118 553 Absorbed by Shields . | . . . . . Redirected to Shielding 73 | . . . . 73 Core Remaining (%) 67 | 100 90 . 13 . Volleys Fired 155 | . 24 69 34 28 Largest 2 | . 2 2 2 2 Hottest 88 | . 40 88 50 85 Shots Fired 281 | . 48 127 55 51 Gun 179 | . 48 71 21 39 Cannon 102 | . . 56 34 12 Launcher . | . . . . . Special . | . . . . . Kinetic 210 | . 48 71 55 36 Thermal 71 | . . 56 . 15 Explosive . | . . . . . Electromagnetic . | . . . . . Robot Hit Streak 12 | . 7 12 6 6 Robot Miss Streak 6 | . 3 6 4 3 Penetration Max . | . . . . . Secondary Targets 2 | . . . . 2 Max Gunslinging Chain 1 | . . . . 1 Shots Hit Robots 153 | . 28 68 28 29 Core Hits 72 | . 11 29 14 18 Critical Kills . | . . . . . Critical Parts Destroyed . | . . . . . Critical Strikes 2 | . . . 2 . Blast 2 | . . . 2 . Melee Attacks . | . . . . . Impact . | . . . . . Slashing . | . . . . . Piercing . | . . . . . Sneak Attacks . | . . . . . Combat Hostiles . | . . . . . Follow-up Attacks . | . . . . . Damage Inflicted 2238 | . 302 1146 433 357 Guns 1110 | . 302 429 82 297 Cannons 1118 | . . 717 351 50 Explosions . | . . . . . Melee . | . . . . . Ramming 10 | . . . . 10 Kinetic 1361 | . 302 429 433 197 Thermal 867 | . . 717 . 150 Explosive . | . . . . . Electromagnetic . | . . . . . Impact . | . . . . . Slashing . | . . . . . Piercing . | . . . . . Highest Corruption . | . . . . . Average Corruption . | . . . . . Corruption Purged . | . . . . . Corruption Blocked . | . . . . . Overload Shots . | . . . . . Overflow Damage 17 | . . 4 13 . Projectiles 17 | . . 4 13 . Explosions . | . . . . . Melee . | . . . . . Knockbacks 3 | . . . 3 . Impact . | . . . . . Kinetic 3 | . . . 3 . Secondary . | . . . . . Self-Inflicted Damage 5 | . . . . 5 Shots . | . . . . . Rammed 1 | . . . . 1 Targets Rammed 1 | . . . . 1 Kicked . | . . . . . Crushed . | . . . . . Highest Temperature 254 | . 16 81 3 254 Average Temperature 45 | . 9 20 3 94 Received Heat Transfer 1032 | . 96 312 93 531 Effects 1 | . . . . 1 Interference 1 | . . . . 1 Siege Activations . | . . . . . Martial Activations . | . . . . . Shielding Activations . | . . . . . Robots Disrupted . | . . . . . Combat Hostiles . | . . . . . Robots Corrupted . | . . . . . Combat Hostiles . | . . . . . Parts Fried . | . . . . . Impact Corruptions . | . . . . . Robots Melted . | . . . . . Combat Hostiles . | . . . . . Parts Melted . | . . . . . Heat Transferred 1665 | . . 1295 . 370 Parts Sabotaged . | . . . . . Parts Stolen . | . . . . . Parts Stripped . | . . . . . Power Chain Reactions . | . . . . . Alert | -11 -10 -9 -9 -8 ------- Run | Yrd Mat Mat Min Mat Maximum Alert Level 1 | . . 1 . . Low Security (%) 98 | 100 100 95 100 100 Level 1 1 | . . 4 . . Level 2 . | . . . . . Level 3 . | . . . . . Level 4 . | . . . . . Level 5 . | . . . . . High Security . | . . . . . Max Security . | . . . . . Peak Influence 221 | . 72 221 152 75 Initial 82 | . . 7 82 9 Average 49 | . 31 47 87 16 Influence Increases 888 | . 99 342 230 217 Destroy 0b10 Robot/C 620 | . 60 260 200 100 Destroy 0b10 Robot/NC 45 | . 15 25 . 5 Destroy Leader 116 | . 24 42 30 20 Allied During Kill 2 | . . . . 2 Disable Machine 15 | . . . . 15 Lose Combat Pursuer 90 | . . 15 . 75 Influence Decreases 833 | . 80 148 419 186 Entered New Map 158 | . . 12 131 15 Time Decay 513 | . 80 96 238 99 Lost Part 142 | . . 40 50 52 Lost Ally 20 | . . . . 20 Squads Dispatched 2 | . 1 . . 1 Investigation . | . . . . . Extermination . | . . . . . Reinforcement 2 | . 1 . . 1 Assault . | . . . . . Garrison . | . . . . . Intercept . | . . . . . Searches Triggered . | . . . . . Construction Impeded . | . . . . . Haulers Reinforced . | . . . . . Active Scanning Responses . | . . . . . Cargo Convoy Interrupts . | . . . . . Stealth | -11 -10 -9 -9 -8 --------- Run | Yrd Mat Mat Min Mat Distress Signals 7 | . 1 1 . 5 Communications Jammed . | . . . . . Distress Signals . | . . . . . Times Spotted 70 | . 7 26 10 27 Peak Tracking Total 11 | . 4 11 4 10 Tactical Retreats 2 | . . 1 . 1 Traps | -11 -10 -9 -9 -8 ------- Run | Yrd Mat Mat Min Mat Traps Triggered . | . . . . . Indirectly . | . . . . . Trap Hack Attempts . | . . . . . Triggered . | . . . . . Disarmed . | . . . . . Reprogrammed . | . . . . . Reused . | . . . . . Traps Extracted . | . . . . . Installed . | . . . . . Triggered . | . . . . . Machines | -11 -10 -9 -9 -8 ---------- Run | Yrd Mat Mat Min Mat Machines Disabled 1 | . . . . 1 Max in Single Turn . | . . . . . Machines Repaired . | . . . . . Machines Dismantled . | . . . . . Machines Sabotaged . | . . . . . Overloaded Fab Kills . | . . . . . Hacking | -11 -10 -9 -9 -8 --------- Run | Yrd Mat Mat Min Mat Machines Accessed . | . . . . . Terminals . | . . . . . Fabricators . | . . . . . Repair Stations . | . . . . . Recycling Units . | . . . . . Scanalyzers . | . . . . . Garrison Access . | . . . . . Total Hacks . | . . . . . Successful . | . . . . . Failed . | . . . . . Catastrophic . | . . . . . Database Lockouts . | . . . . . Manual . | . . . . . Terminals . | . . . . . Fabricators . | . . . . . Repair Stations . | . . . . . Recycling Units . | . . . . . Scanalyzers . | . . . . . Garrison Access . | . . . . . Terminal Hacks . | . . . . . Fabricator Hacks . | . . . . . Repair Station Hacks . | . . . . . Recycling Unit Hacks . | . . . . . Scanalyzer . | . . . . . Garrison Access Hacks . | . . . . . Unauthorized Hacks . | . . . . . Terminals . | . . . . . Fabricators . | . . . . . Repair Stations . | . . . . . Recycling Units . | . . . . . Scanalyzers . | . . . . . Garrison Access . | . . . . . Data Cores Recovered . | . . . . . Used . | . . . . . Hacking Detections . | . . . . . Full Trace Events . | . . . . . Feedback Events . | . . . . . Feedback Blocked . | . . . . . Robot Schematics Acquired . | . . . . . Robots Built . | . . . . . Authchips . | . . . . . Time . | . . . . . Total Robot Build Rating . | . . . . . Part Schematics Acquired . | . . . . . Parts Built . | . . . . . Authchips . | . . . . . Time . | . . . . . Total Part Build Rating . | . . . . . Part Studies Acquired . | . . . . . Parts Repaired . | . . . . . Time . | . . . . . Parts Recycled . | . . . . . Recycled Matter . | . . . . . Retrieved Matter . | . . . . . Retrieved Components . | . . . . . Parts Scanalyzed . | . . . . . Part Schematics Acquired . | . . . . . Parts Damaged . | . . . . . Bothacking | -11 -10 -9 -9 -8 ------------ Run | Yrd Mat Mat Min Mat Used RIF Installer . | . . . . . Robots Hacked . | . . . . . Non-combat . | . . . . . Combat . | . . . . . Robot Hacks Applied . | . . . . . Relay Couplers Released . | . . . . . Fabnet Peak Effective % . | . . . . . Robots Rewired . | . . . . . Allies Hacked . | . . . . . Hacks Repelled . | . . . . . Allies | -11 -10 -9 -9 -8 -------- Run | Yrd Mat Mat Min Mat Total Allies 1 | . . . 1 . Largest Group 1 | . . . 1 1 Highest-Rated Group 31 | . . . 31 31 Highest-Rated Ally 31 | . . . 31 31 Total Orders . | . . . . . Ally Attacks 13 | . . . . 13 Total Damage 126 | . . . . 126 Kills 1 | . . . . 1 Allies Corrupted . | . . . . . Allies Melted . | . . . . . Intel | -11 -10 -9 -9 -8 ------- Run | Yrd Mat Mat Min Mat Active Infowar (turns) 1352 | . 13 549 507 283 Optics 1352 | . 13 549 507 283 Robot Analysis Total . | . . . . . Derelict Logs Recovered . | . . . . . Drone Launches . | . . . . . Drone Recoveries . | . . . . . Exploration | -11 -10 -9 -9 -8 ------------- Run | Yrd Mat Mat Min Mat Turns Passed 1643 | 78 226 549 507 283 Spaces Moved 831 | 47 96 214 275 199 Core 395 | 3 . 3 207 182 Treads 419 | 44 96 211 68 . Legs 17 | . . . . 17 Wheels . | . . . . . Hover . | . . . . . Flight . | . . . . . Fastest Speed 50 | 50 160 160 150 50 Average Speed 141 | 152 160 160 152 94 Slowest Speed 450 | 160 160 200 160 450 Overloaded Moves . | . . . . . Propulsion Burnouts . | . . . . . Robots Hopped . | . . . . . Potential Cave-ins . | . . . . . Cave-ins Triggered . | . . . . . Exploration Rate (%) 29 | 3 22 23 77 22 Regions Visited 4 Branch Regions 1 Pre-discovered Areas . | . . . . . Known Exits Taken . | . . . . . Unknown Exits Taken 4 | 1 1 1 1 . Scrap Searched 3 | . . . 3 . Spaces Dug . | . . . . . Terrain Destroyed . | . . . . . Melee . | . . . . . Projectile . | . . . . . AOE . | . . . . . Terrain Rammed . | . . . . . Walls Destroyed . | . . . . . Machines Disabled . | . . . . . Actions | -11 -10 -9 -9 -8 --------- Run | Yrd Mat Mat Min Mat Total 1031 | 51 125 300 311 244 Wait 4 | . . 2 . 2 Move 827 | 46 95 213 274 199 Hop . | . . . . . Pick Up 12 | . 5 4 . 3 Fast Attach 18 | 5 1 4 1 7 Attach 7 | . . 4 1 2 Detach 2 | . . 1 . 1 Swap 3 | . . 2 1 . Drop 2 | . . 1 . 1 Fire 155 | . 24 69 34 28 Melee . | . . . . . Ram 1 | . . . . 1 Kick . | . . . . . Crush . | . . . . . Escape Stasis . | . . . . . Rewire . | . . . . . Trap . | . . . . . Miscellaneous . | . . . . . Route ------- -11/Scrapyard -10/Materials -9/Materials (discovered 2 exits: [*Min x2]) -9/Mines -8/Materials (discovered 1 exit: [*Fac]) History --------- Turn | Location | Event 17 | -11/Scrapyard | Discovered new exit (range 15) 79 | -11/Scrapyard | Entered Materials 195 | -10/Materials | Discovered new exit (range 15) 305 | -10/Materials | Entered another Materials area 305 | -9/Materials | Evolved 2 slots: Utility x2 313 | -9/Materials | Build established: Mutant 744 | -9/Materials | Lost 4 parts (1p2n1w) 752 | -9/Materials | Destroyed 9 combat bots 775 | -9/Materials | Discovered new exit (range 12) 793 | -9/Materials | Core integrity fell below 50% 834 | -9/Materials | Discovered new exit (range 18) 854 | -9/Materials | Entered Mines 1057 | -9/Mines | Lost 3 parts (1n1u1w) 1082 | -9/Mines | Core integrity fell below 20% 1338 | -9/Mines | Discovered new exit (range 12) 1354 | -9/Mines | Received a Mining Laser from a helpful Derelict 1361 | -9/Mines | Entered Materials 1361 | -8/Materials | Accompanied by 1 ally 1361 | -8/Materials | Evolved 2 slots: Power x1, Weapon x1 1583 | -8/Materials | Core integrity fell below 50% 1629 | -8/Materials | Discovered new exit (range 18) 1631 | -8/Materials | Core integrity fell below 20% 1637 | -8/Materials | Lost 7 parts (1n4u2w) 1644 | -8/Materials | Destroyed by S-10 Pest with Light Assault Rifle Last Messages --------------- Acquired Adv. Heat Sink. Acquired Lgt. Angular Momentum Engine. K-01 Serf cleans the Repair Station. S-10 Pest destroyed. EXIT=FOUND K-01 Serf collects debris. U-05 Engineer works on Electrolysis Chamber. K-01 Serf collects debris. K-01 Serf cleans the Fusion Modulator. Penetrated by Slug. Imp. Heat Sink destroyed. Knocked back. U-05 Engineer works on Electrolysis Chamber. K-01 Serf collects debris. W-25 Informer sends out distress signal. Electrolysis Chamber disabled. K-01 Serf collects debris. U-05 Engineer works on Electrolysis Chamber. U-05 Engineer destroyed. K-01 Serf collects debris. Map ----- +----------------------------------------------------+ | ?????????????????????????????????????????????????? | | ?????????????????????????????????????????????????? | | ?????????????????????????????????????????????????? | | ?????????????????????????????????????????????????? | | ?????????????????????????????????????????????????? | | ?????????????????????????????????????????????????? | | ?????????????????????????????????????????????????? | | ?????????????????????????????????????????????????? | | ?????????????????????????????????????????????????? | | ?????????????????????????????????????????????????? | | ?????????????????????????????????????????????????? | | ?????????????????????????????????????""??????????? | | ??????????????????###??????#####????"""??????????? | | ??????????????????# ?????# """#????""??????????? | | ??????????????????# < ####?#""R"#???? ??????????? | | ??????????????????# #"T"##"" "######+########??? | | ??????????????????# H % #??? | | ??????????????????# ##?? | | ??????????????????# """ """ """ "#?? | | ??????????????????# !< """ """ """ "#?? | | ??????????????????# !%< k * "" """ """ "#?? | | ??????????????????# ^ % sss T#?? | | ??????????????????# % [ "#?? | | ??????????????????# [ "#?? | | ?????????# # % w "#?? | | ?????????# Y @ #### | | ???????????? "" # a ###! | | ??????????????????## g %! ##! | | ???????????????????# ##########+###########+#### | | ???????????????????#????????# ## [ ! %#?? | | ????????????????????????????# # """*% ### | | ????????????????????????????# ## """ / | | ????????????????????????????# ## """ ### | | ????????????????????????????# """ """ ## #?? | | ????????????????????????????# """ """ ## **#?? | | ????????????????????????????# """ """ ## **#?? | | ????????????????????????????# ## "" ***#?? | | ????????????????????????????############ "Y #?? | | ???????????????????????????????????????# "" #?? | | ???????????????????????????????????????# #?? | | ???????????????????????????????????????#########?? | | ?????????????????????????????????????????????????? | | ?????????????????????????????????????????????????? | | ?????????????????????????????????????????????????# | | ?????????????????????????????????????????????????# | | ?????????????????????????????????????????????????# | | ?????????????????????????????????????????????????# | | ?????????????????????????????????????????????????# | | ?????????????????????????????????????????????????# | | ?????????????????????????????????????????????????# | +----------------------------------------------------+ Best States ------------- Heat Dissipation 59 Energy Generation 23 Energy Capacity 450 Matter Stores 500 Matter Capacity 500 Sight Range 18 Terrain Scan Density 10 Armor Coverage 150 Core Shielding 20 Evasion (%) 55 Recoil Reduction 2 Offensive Hacking 10 Item Schematics ----------------- None Robot Schematics ------------------ None Fabricated ------------ Nothing Repaired ---------- Nothing Studied --------- None Alien Tech Used ----------------- None Achievements -------------- None Challenges ------------ None Game ------ Seed ZeronetSapperArachnoskeleton Manual? 0 Play Time 00:13:32 Cumulative 380.7 hours Start 2026.08.29 @ 11:22:03 End 2026.08.29 @ 11:33:50 Sessions 1 Manual Loads 0 Difficulty Rogue Special Mode None Game No. 938 Rogue 936 Adventurer 2 Explorer 0 Win Type - Total 1 Types 1/0/0/0/0/0/0/0/0/0 Lore% 55 Gallery% 67 Achievement% 53 Wizard Run 0 Options --------- Layout 2 ASCII 0 Keyboard 0 Movement Mouse Keybinds 0 Fullscreen 1 Font 24/Smallcaps Map View 50x44 Zoom Use 0% Tactical HUD 0 Map Filters NONE Filters NONE Steam 1 RUN: 861256e7-b371-4d10-971c-1a561df0a181